[Event "Late-Titled-Tuesday-Blitz-January-23-2024"]
[Site "Chess.com"]
[Date "2024.01.23"]
[Round "1"]
[White "SocoLoco"]
[Black "chesspreceptor"]
[Result "0-1"]
[WhiteElo "2215"]
[BlackElo "2577"]
[TimeControl "180+1"]
[EndTime "14:07:05 PST"]
[Termination "chesspreceptor won by resignation"]

1. e4 {[%clk 0:02:58.3]} 1... e6 {[%clk 0:02:55.4]} 2. d3 {[%clk 0:02:56.6]}
2... d5 {[%clk 0:02:54.6]} 3. f4 {[%clk 0:02:56.4]} 3... dxe4 {[%clk 0:02:54.1]}
4. Nc3 {[%clk 0:02:56.2]} 4... exd3 {[%clk 0:02:53.2]} 5. Bxd3 {[%clk
0:02:56.8]} 5... Nf6 {[%clk 0:02:48.7]} 6. Nf3 {[%clk 0:02:56.3]} 6... Bc5
{[%clk 0:02:48.8]} 7. Qe2 {[%clk 0:02:55]} 7... Nc6 {[%clk 0:02:45.6]} 8. Be3
{[%clk 0:02:47.2]} 8... Bxe3 {[%clk 0:02:43.8]} 9. Qxe3 {[%clk 0:02:46.4]} 9...
O-O {[%clk 0:02:41]} 10. O-O-O {[%clk 0:02:35.9]} 10... Qe7 {[%clk 0:02:36.6]}
11. Ne5 {[%clk 0:02:33]} 11... Nb4 {[%clk 0:02:31.8]} 12. Bc4 {[%clk 0:01:41.5]}
12... c6 {[%clk 0:02:24.8]} 13. Ne4 {[%clk 0:01:29.8]} 13... Nbd5 {[%clk
0:02:23.5]} 14. Qf3 {[%clk 0:01:25.4]} 14... Nxe4 {[%clk 0:02:20.8]} 15. Qxe4
{[%clk 0:01:25.1]} 15... f6 {[%clk 0:02:19.8]} 16. Nf3 {[%clk 0:01:21.8]} 16...
Qc7 {[%clk 0:02:16]} 17. Rhe1 {[%clk 0:01:15]} 17... Qxf4+ {[%clk 0:02:15]} 18.
Qxf4 {[%clk 0:01:13.1]} 18... Nxf4 {[%clk 0:02:15.9]} 19. g3 {[%clk 0:01:04.6]}
19... Nd5 {[%clk 0:02:14.3]} 20. Nd4 {[%clk 0:01:04.1]} 20... e5 {[%clk
0:02:12.9]} 21. Nb3 {[%clk 0:00:55.8]} 21... Rd8 {[%clk 0:02:09.1]} 22. Rd2
{[%clk 0:00:48.2]} 22... b5 {[%clk 0:02:04.8]} 23. Bf1 {[%clk 0:00:45.4]} 23...
Be6 {[%clk 0:01:54.9]} 24. Nc5 {[%clk 0:00:45]} 24... Bg4 {[%clk 0:01:51.1]} 25.
h3 {[%clk 0:00:40.1]} 25... Bf5 {[%clk 0:01:44]} 26. g4 {[%clk 0:00:39.4]} 26...
Bg6 {[%clk 0:01:43.7]} 27. h4 {[%clk 0:00:30.4]} 27... Nb4 {[%clk 0:01:40.2]}
28. h5 {[%clk 0:00:28]} 28... Rxd2 {[%clk 0:01:39.4]} 29. Kxd2 {[%clk
0:00:25.6]} 29... Rd8+ {[%clk 0:01:39.9]} 30. Kc3 {[%clk 0:00:22.6]} 30... Nd5+
{[%clk 0:01:37.3]} 31. Kb3 {[%clk 0:00:20.5]} 31... Bf7 {[%clk 0:01:36.8]} 32.
c4 {[%clk 0:00:19.1]} 32... Nb6 {[%clk 0:01:36.1]} 33. Rc1 {[%clk 0:00:13.5]}
33... bxc4+ {[%clk 0:01:35.2]} 34. Kb4 {[%clk 0:00:12.9]} 34... Nd5+ {[%clk
0:01:34.5]} 35. Kxc4 {[%clk 0:00:11.2]} 35... Ne3+ {[%clk 0:01:34.4]} 36. Kb4
{[%clk 0:00:10.6]} 36... Nxf1 {[%clk 0:01:34.5]} 37. Rxf1 {[%clk 0:00:10.8]}
37... Bxa2 {[%clk 0:01:33.6]} 38. b3 {[%clk 0:00:10.2]} 38... Rd5 {[%clk
0:01:27.7]} 39. Kc4 {[%clk 0:00:09.9]} 39... Rd4+ {[%clk 0:01:25.7]} 40. Kc3
{[%clk 0:00:09.2]} 40... Rxg4 {[%clk 0:01:25.9]} 41. Ra1 {[%clk 0:00:08.8]}
41... Rg2 {[%clk 0:01:26]} 42. Ne4 {[%clk 0:00:06.6]} 42... Rh2 {[%clk
0:01:23.1]} 43. Nd2 {[%clk 0:00:06.2]} 43... Bxb3 {[%clk 0:01:20.4]} 44. Nxb3
{[%clk 0:00:06.2]} 44... Rxh5 {[%clk 0:01:20.8]} 45. Rxa7 {[%clk 0:00:05.2]}
45... Rh3+ {[%clk 0:01:20.8]} 46. Kc4 {[%clk 0:00:04.8]} 46... Rf3 {[%clk
0:01:18.3]} 47. Nc5 {[%clk 0:00:05.7]} 47... h5 {[%clk 0:01:18]} 48. Ne6 {[%clk
0:00:05.6]} 48... Rg3 {[%clk 0:01:17.8]} 49. Rc7 {[%clk 0:00:03.4]} 49... h4
{[%clk 0:01:17.8]} 50. Rxc6 {[%clk 0:00:03.2]} 50... h3 {[%clk 0:01:18.4]} 51.
Rc8+ {[%clk 0:00:03.9]} 51... Kf7 {[%clk 0:01:17.3]} 52. Nf8 {[%clk 0:00:04.8]}
52... h2 {[%clk 0:01:17]} 53. Nd7 {[%clk 0:00:04.7]} 53... h1=Q {[%clk
0:01:16.7]} 54. Rf8+ {[%clk 0:00:05.6]} 54... Ke6 {[%clk 0:01:16.5]} 55. Rh8
{[%clk 0:00:05.7]} 55... Qxh8 {[%clk 0:01:15.5]} 56. Nc5+ {[%clk 0:00:05.5]}
56... Kf5 {[%clk 0:01:14.8]} 0-1

[Event "Late-Titled-Tuesday-Blitz-January-23-2024"]
[Site "Chess.com"]
[Date "2024.01.23"]
[Round "1"]
[White "CarlosjPineror"]
[Black "Jenia84"]
[Result "1-0"]
[WhiteElo "2609"]
[BlackElo "2297"]
[TimeControl "180+1"]
[EndTime "14:07:07 PST"]
[Termination "CarlosjPineror won by resignation"]

1. e4 {[%clk 0:03:00.9]} 1... c5 {[%clk 0:02:51.4]} 2. Nf3 {[%clk 0:03:00.7]}
2... d6 {[%clk 0:02:50.7]} 3. d4 {[%clk 0:03:00.6]} 3... cxd4 {[%clk 0:02:50.6]}
4. Nxd4 {[%clk 0:03:01.5]} 4... Nf6 {[%clk 0:02:49.9]} 5. Nc3 {[%clk 0:03:02.1]}
5... a6 {[%clk 0:02:46.7]} 6. Bg5 {[%clk 0:03:02.6]} 6... e6 {[%clk 0:02:46.8]}
7. f4 {[%clk 0:03:02.7]} 7... Nbd7 {[%clk 0:02:45.4]} 8. Qe2 {[%clk 0:03:02.2]}
8... Qc7 {[%clk 0:02:42.3]} 9. O-O-O {[%clk 0:03:02.3]} 9... h6 {[%clk 0:02:40]}
10. Bh4 {[%clk 0:03:01.9]} 10... b5 {[%clk 0:02:38]} 11. g4 {[%clk 0:03:01.2]}
11... b4 {[%clk 0:02:37.1]} 12. Nd5 {[%clk 0:03:00.3]} 12... exd5 {[%clk
0:02:08.5]} 13. exd5+ {[%clk 0:02:58.9]} 13... Ne5 {[%clk 0:02:08.6]} 14. fxe5
{[%clk 0:02:50.2]} 14... dxe5 {[%clk 0:02:08]} 15. Nc6 {[%clk 0:02:50.7]} 15...
Bxg4 {[%clk 0:01:59.6]} 16. Qf2 {[%clk 0:02:43.2]} 16... Bxd1 {[%clk 0:01:54.9]}
17. Bxf6 {[%clk 0:02:43.6]} 17... gxf6 {[%clk 0:01:43]} 18. Qxf6 {[%clk
0:02:32.2]} 18... Qd6 {[%clk 0:01:22.1]} 19. Qxh8 {[%clk 0:02:31.1]} 19... Qxd5
{[%clk 0:01:18.6]} 20. Qxe5+ {[%clk 0:02:29]} 20... Qxe5 {[%clk 0:01:16.5]} 21.
Nxe5 {[%clk 0:02:29.9]} 21... f6 {[%clk 0:01:04.6]} 22. Bg2 {[%clk 0:02:19.3]}
22... Rc8 {[%clk 0:00:54.4]} 23. Rxd1 {[%clk 0:02:12]} 23... fxe5 {[%clk
0:00:54.1]} 24. Bb7 {[%clk 0:02:12.4]} 24... Rc5 {[%clk 0:00:46.5]} 25. Bxa6
{[%clk 0:02:09]} 25... Be7 {[%clk 0:00:46.7]} 26. Bd3 {[%clk 0:02:00.9]} 26...
Bg5+ {[%clk 0:00:46.3]} 27. Kb1 {[%clk 0:02:01.1]} 27... Ke7 {[%clk 0:00:46.4]}
28. Re1 {[%clk 0:01:59.9]} 28... Bf4 {[%clk 0:00:45.8]} 29. h3 {[%clk
0:01:57.6]} 29... Rc8 {[%clk 0:00:43.3]} 30. Re4 {[%clk 0:01:51.4]} 30... Rg8
{[%clk 0:00:40.9]} 31. a4 {[%clk 0:01:50.9]} 31... bxa3 {[%clk 0:00:40.5]} 32.
bxa3 {[%clk 0:01:51.5]} 32... Kd6 {[%clk 0:00:38.6]} 33. Rb4 {[%clk 0:01:46.7]}
33... Kc7 {[%clk 0:00:36.3]} 34. a4 {[%clk 0:01:46]} 34... Rb8 {[%clk
0:00:34.7]} 35. Rxb8 {[%clk 0:01:45.7]} 35... Kxb8 {[%clk 0:00:34.9]} 36. Ka2
{[%clk 0:01:46.2]} 36... Ka7 {[%clk 0:00:35.1]} 37. Kb3 {[%clk 0:01:46.2]} 37...
Kb6 {[%clk 0:00:35.4]} 38. Kb4 {[%clk 0:01:46.1]} 38... Bd2+ {[%clk 0:00:34]}
39. c3 {[%clk 0:01:46.4]} 39... Be1 {[%clk 0:00:30.3]} 40. a5+ {[%clk
0:01:46.3]} 40... Ka7 {[%clk 0:00:29.3]} 41. Be2 {[%clk 0:01:45.8]} 41... Bd2
{[%clk 0:00:29.1]} 42. Kb3 {[%clk 0:01:43.7]} 42... e4 {[%clk 0:00:28.5]} 43.
Kc2 {[%clk 0:01:36.9]} 43... e3 {[%clk 0:00:28.8]} 44. h4 {[%clk 0:01:34.1]}
44... Be1 {[%clk 0:00:28.1]} 45. h5 {[%clk 0:01:34]} 45... Bh4 {[%clk
0:00:26.5]} 46. a6 {[%clk 0:01:30.4]} 46... Bg5 {[%clk 0:00:25.2]} 47. Kb3
{[%clk 0:01:28.1]} 47... Bf4 {[%clk 0:00:24.6]} 48. Kc4 {[%clk 0:01:28.5]} 48...
Be5 {[%clk 0:00:21.4]} 49. Kb4 {[%clk 0:01:27.4]} 49... Kb6 {[%clk 0:00:21]} 50.
Bd3 {[%clk 0:01:24]} 50... Bd6+ {[%clk 0:00:20.8]} 51. Kb3 {[%clk 0:01:22]}
51... Bc5 {[%clk 0:00:19.8]} 52. Kc4 {[%clk 0:01:20.9]} 52... Kc6 {[%clk
0:00:20.1]} 53. Be4+ {[%clk 0:01:19.8]} 53... Kd6 {[%clk 0:00:20]} 54. Kd3
{[%clk 0:01:20.3]} 54... Ba7 {[%clk 0:00:19.9]} 55. Bf3 {[%clk 0:01:20.2]} 55...
Ke5 {[%clk 0:00:20.4]} 56. Be2 {[%clk 0:01:20.7]} 56... Kf4 {[%clk 0:00:20.4]}
57. Kc4 {[%clk 0:01:21]} 57... Kg3 {[%clk 0:00:20.3]} 58. Kb5 {[%clk 0:01:19.8]}
58... Kf2 {[%clk 0:00:18.6]} 59. Bd1 {[%clk 0:01:19.5]} 59... Ke1 {[%clk
0:00:18.5]} 60. Bg4 {[%clk 0:01:19.4]} 60... e2 {[%clk 0:00:15.8]} 61. c4 {[%clk
0:01:18.6]} 61... Kd2 {[%clk 0:00:16]} 62. Bxe2 {[%clk 0:01:18]} 62... Kxe2
{[%clk 0:00:16.4]} 63. c5 {[%clk 0:01:18.9]} 63... Kd3 {[%clk 0:00:16.2]} 64. c6
{[%clk 0:01:19.5]} 64... Bb8 {[%clk 0:00:16.8]} 65. a7 {[%clk 0:01:19.1]} 65...
Bxa7 {[%clk 0:00:16.5]} 66. c7 {[%clk 0:01:19.3]} 1-0

[Event "Late-Titled-Tuesday-Blitz-January-23-2024"]
[Site "Chess.com"]
[Date "2024.01.23"]
[Round "1"]
[White "ahkashefi2800"]
[Black "stregachess"]
[Result "1-0"]
[WhiteElo "2553"]
[BlackElo "2082"]
[TimeControl "180+1"]
[EndTime "14:07:09 PST"]
[Termination "ahkashefi2800 won on time"]

1. e4 {[%clk 0:02:58]} 1... c5 {[%clk 0:02:58.3]} 2. Nf3 {[%clk 0:02:55.3]} 2...
Nc6 {[%clk 0:02:57.5]} 3. d4 {[%clk 0:02:56.2]} 3... cxd4 {[%clk 0:02:56.9]} 4.
Nxd4 {[%clk 0:02:57.1]} 4... g6 {[%clk 0:02:57.1]} 5. Be3 {[%clk 0:02:57.2]}
5... Bg7 {[%clk 0:02:55.7]} 6. Nc3 {[%clk 0:02:55.9]} 6... Nf6 {[%clk 0:02:53]}
7. Bc4 {[%clk 0:02:53.7]} 7... O-O {[%clk 0:02:52.4]} 8. f3 {[%clk 0:02:52.3]}
8... d6 {[%clk 0:02:52.2]} 9. Qd2 {[%clk 0:02:52.2]} 9... Nxd4 {[%clk
0:02:50.1]} 10. Bxd4 {[%clk 0:02:52.2]} 10... Be6 {[%clk 0:02:50.2]} 11. Bb3
{[%clk 0:02:52.1]} 11... Qa5 {[%clk 0:02:49]} 12. h4 {[%clk 0:02:50.6]} 12...
Rac8 {[%clk 0:02:40.1]} 13. O-O {[%clk 0:02:49.8]} 13... a6 {[%clk 0:02:35.5]}
14. Rfd1 {[%clk 0:02:47.1]} 14... Qh5 {[%clk 0:02:04.4]} 15. Qf2 {[%clk
0:02:46]} 15... Qa5 {[%clk 0:01:53.6]} 16. Bb6 {[%clk 0:02:40.4]} 16... Qh5
{[%clk 0:01:29.9]} 17. Rd2 {[%clk 0:02:36]} 17... Bh6 {[%clk 0:01:25.6]} 18. Rd3
{[%clk 0:02:33.4]} 18... g5 {[%clk 0:01:25.2]} 19. hxg5 {[%clk 0:02:27.2]} 19...
Bxg5 {[%clk 0:01:23]} 20. f4 {[%clk 0:02:22.9]} 20... Bh4 {[%clk 0:01:18.4]} 21.
Qf3 {[%clk 0:02:17.8]} 21... Qxf3 {[%clk 0:01:09]} 22. Rxf3 {[%clk 0:02:16.5]}
22... Nd7 {[%clk 0:01:05]} 23. Bd4 {[%clk 0:02:14.6]} 23... Bf6 {[%clk
0:01:01.3]} 24. Rd1 {[%clk 0:02:13.2]} 24... Nc5 {[%clk 0:00:58.3]} 25. e5
{[%clk 0:02:09.8]} 25... dxe5 {[%clk 0:00:52.2]} 26. fxe5 {[%clk 0:02:10.3]}
26... Bg7 {[%clk 0:00:52.1]} 27. Rg3 {[%clk 0:02:07.1]} 27... Kh8 {[%clk
0:00:47.6]} 28. Re3 {[%clk 0:01:41.3]} 28... Nxb3 {[%clk 0:00:47.3]} 29. axb3
{[%clk 0:01:41.7]} 29... b5 {[%clk 0:00:47.5]} 30. b4 {[%clk 0:01:36.1]} 30...
Rfd8 {[%clk 0:00:44.4]} 31. Ree1 {[%clk 0:01:34.5]} 31... Rc4 {[%clk 0:00:40.4]}
32. Bc5 {[%clk 0:01:33.6]} 32... Rxd1 {[%clk 0:00:34.8]} 33. Rxd1 {[%clk
0:01:34.5]} 33... Bxe5 {[%clk 0:00:32.5]} 34. Bxe7 {[%clk 0:01:34.1]} 34... Kg7
{[%clk 0:00:24.9]} 35. Bc5 {[%clk 0:01:33.3]} 35... Bf5 {[%clk 0:00:20.1]} 36.
Rd2 {[%clk 0:01:30]} 36... Bf6 {[%clk 0:00:19.8]} 37. Rf2 {[%clk 0:01:26.5]}
37... Bg6 {[%clk 0:00:17.6]} 38. Rd2 {[%clk 0:01:21]} 38... Bg5 {[%clk
0:00:13.1]} 39. Rd6 {[%clk 0:01:18.9]} 39... Bf6 {[%clk 0:00:12.7]} 40. Rxa6
{[%clk 0:01:18.2]} 40... h5 {[%clk 0:00:09.1]} 41. Rd6 {[%clk 0:01:11.2]} 41...
Bxc2 {[%clk 0:00:08.9]} 42. Nxb5 {[%clk 0:01:09.9]} 42... Be4 {[%clk 0:00:07.8]}
43. Rd2 {[%clk 0:01:08]} 43... Rc1+ {[%clk 0:00:06.9]} 44. Kf2 {[%clk
0:01:04.9]} 44... Bg5 {[%clk 0:00:06.8]} 45. Be3 {[%clk 0:01:03.6]} 45... Bh4+
{[%clk 0:00:05.7]} 46. g3 {[%clk 0:01:03.2]} 46... Be7 {[%clk 0:00:05]} 47. Bd4+
{[%clk 0:01:02.5]} 47... Kg6 {[%clk 0:00:04.9]} 48. Bc3 {[%clk 0:01:02.5]} 48...
Rh1 {[%clk 0:00:02.7]} 49. Nd4 {[%clk 0:00:58.6]} 49... f5 {[%clk 0:00:02]} 50.
Ne2 {[%clk 0:00:57.6]} 1-0

[Event "Late-Titled-Tuesday-Blitz-January-23-2024"]
[Site "Chess.com"]
[Date "2024.01.23"]
[Round "1"]
[White "ValeriyGrinev"]
[Black "dropstoneDP"]
[Result "0-1"]
[WhiteElo "2530"]
[BlackElo "3051"]
[TimeControl "180+1"]
[EndTime "14:07:15 PST"]
[Termination "dropstoneDP won by resignation"]

1. d4 {[%clk 0:03:00.9]} 1... d5 {[%clk 0:02:55.7]} 2. c4 {[%clk 0:03:01.5]}
2... dxc4 {[%clk 0:02:56.1]} 3. e3 {[%clk 0:03:00.9]} 3... Nf6 {[%clk
0:02:54.8]} 4. Bxc4 {[%clk 0:03:01.2]} 4... e6 {[%clk 0:02:54.6]} 5. Nf3 {[%clk
0:03:00.3]} 5... c5 {[%clk 0:02:55.2]} 6. O-O {[%clk 0:03:00.6]} 6... Nc6 {[%clk
0:02:54.7]} 7. Nc3 {[%clk 0:02:56.9]} 7... a6 {[%clk 0:02:53.7]} 8. Bb3 {[%clk
0:02:56.8]} 8... b5 {[%clk 0:02:52.5]} 9. d5 {[%clk 0:02:54.3]} 9... exd5 {[%clk
0:02:50.2]} 10. Nxd5 {[%clk 0:02:55.2]} 10... c4 {[%clk 0:02:47.2]} 11. Nxf6+
{[%clk 0:02:53.5]} 11... Qxf6 {[%clk 0:02:48.1]} 12. Bc2 {[%clk 0:02:53.1]}
12... Bb7 {[%clk 0:02:45.3]} 13. e4 {[%clk 0:02:52.6]} 13... Be7 {[%clk
0:02:13.5]} 14. Qe2 {[%clk 0:02:06.4]} 14... Nd4 {[%clk 0:01:13.8]} 15. Nxd4
{[%clk 0:02:04.6]} 15... Qxd4 {[%clk 0:01:14.7]} 16. Rd1 {[%clk 0:01:55.1]}
16... Qe5 {[%clk 0:01:14.6]} 17. f4 {[%clk 0:01:49.8]} 17... Bc5+ {[%clk
0:01:15.1]} 18. Kh1 {[%clk 0:01:49.5]} 18... Qe7 {[%clk 0:01:15.2]} 19. e5
{[%clk 0:01:24.2]} 19... O-O {[%clk 0:01:14.5]} 20. f5 {[%clk 0:01:24.1]} 20...
Qh4 {[%clk 0:01:10.9]} 21. Be3 {[%clk 0:01:13.9]} 21... Bxe3 {[%clk 0:01:08.7]}
22. Qxe3 {[%clk 0:01:14.8]} 22... Rad8 {[%clk 0:01:05.7]} 23. h3 {[%clk
0:01:07.3]} 23... Rfe8 {[%clk 0:00:55]} 24. Kh2 {[%clk 0:00:56.8]} 24... h6
{[%clk 0:00:42.7]} 25. Rxd8 {[%clk 0:00:54.8]} 25... Qxd8 {[%clk 0:00:40.7]} 26.
Rd1 {[%clk 0:00:55.7]} 26... Qc7 {[%clk 0:00:29.6]} 27. f6 {[%clk 0:00:41.3]}
27... gxf6 {[%clk 0:00:12.3]} 28. Qg3+ {[%clk 0:00:39.8]} 28... Kf8 {[%clk
0:00:11.9]} 29. Rd6 {[%clk 0:00:24.8]} 29... Rxe5 {[%clk 0:00:10]} 30. Rxf6
{[%clk 0:00:23.4]} 30... Rc5 {[%clk 0:00:07]} 31. Rf4 {[%clk 0:00:17.9]} 31...
Rg5 {[%clk 0:00:05.2]} 32. Qh4 {[%clk 0:00:14]} 32... Rxg2+ {[%clk 0:00:05.3]}
33. Kh1 {[%clk 0:00:13.2]} 33... Rg4+ {[%clk 0:00:06.2]} 0-1

[Event "Late-Titled-Tuesday-Blitz-January-23-2024"]
[Site "Chess.com"]
[Date "2024.01.23"]
[Round "1"]
[White "BeanScreen"]
[Black "picturesquecheck"]
[Result "1-0"]
[WhiteElo "2724"]
[BlackElo "2402"]
[TimeControl "180+1"]
[EndTime "14:07:15 PST"]
[Termination "BeanScreen won on time"]

1. e4 {[%clk 0:02:59.3]} 1... c5 {[%clk 0:02:59.3]} 2. c3 {[%clk 0:02:59]} 2...
Nf6 {[%clk 0:02:57.4]} 3. e5 {[%clk 0:02:59.1]} 3... Nd5 {[%clk 0:02:58]} 4. Nf3
{[%clk 0:02:58.6]} 4... Nc6 {[%clk 0:02:57.6]} 5. Bc4 {[%clk 0:02:57.7]} 5...
Nb6 {[%clk 0:02:56.9]} 6. Bb3 {[%clk 0:02:57.8]} 6... d5 {[%clk 0:02:57.3]} 7.
exd6 {[%clk 0:02:57.3]} 7... Qxd6 {[%clk 0:02:55.2]} 8. O-O {[%clk 0:02:57.3]}
8... e6 {[%clk 0:02:54.4]} 9. d4 {[%clk 0:02:56.3]} 9... cxd4 {[%clk 0:02:54]}
10. cxd4 {[%clk 0:02:56.8]} 10... Be7 {[%clk 0:02:53.9]} 11. Nc3 {[%clk
0:02:56.3]} 11... O-O {[%clk 0:02:52.4]} 12. Re1 {[%clk 0:02:56.3]} 12... Bd7
{[%clk 0:02:48.9]} 13. Nb5 {[%clk 0:02:32.6]} 13... Qb8 {[%clk 0:02:44.5]} 14.
g3 {[%clk 0:02:32.2]} 14... a6 {[%clk 0:02:43.1]} 15. Bf4 {[%clk 0:02:31.5]}
15... Qc8 {[%clk 0:02:19.6]} 16. Nc7 {[%clk 0:02:30.4]} 16... Ra7 {[%clk
0:02:16.1]} 17. d5 {[%clk 0:02:28.8]} 17... exd5 {[%clk 0:02:10.5]} 18. Nxd5
{[%clk 0:02:28.8]} 18... Nxd5 {[%clk 0:02:05.6]} 19. Bxd5 {[%clk 0:02:29.7]}
19... Bf6 {[%clk 0:02:02]} 20. Bd6 {[%clk 0:02:25.8]} 20... Re8 {[%clk
0:01:54.9]} 21. Qb3 {[%clk 0:02:25.8]} 21... Be6 {[%clk 0:01:39.6]} 22. Bxe6
{[%clk 0:02:25.1]} 22... Rxe6 {[%clk 0:01:38.3]} 23. Rxe6 {[%clk 0:02:25]} 23...
Qxe6 {[%clk 0:01:38.4]} 24. Qxe6 {[%clk 0:02:17.4]} 24... fxe6 {[%clk
0:01:37.4]} 25. Rd1 {[%clk 0:02:13.5]} 25... Ra8 {[%clk 0:01:36.1]} 26. Bc7
{[%clk 0:02:09.9]} 26... Nb4 {[%clk 0:01:29.4]} 27. Rd7 {[%clk 0:01:13.3]} 27...
Bxb2 {[%clk 0:01:09.9]} 28. Bd6 {[%clk 0:01:12.2]} 28... Nxa2 {[%clk 0:01:03.7]}
29. Rxb7 {[%clk 0:01:10.3]} 29... Bf6 {[%clk 0:01:02.8]} 30. g4 {[%clk
0:01:01.6]} 30... h6 {[%clk 0:00:55.7]} 31. h4 {[%clk 0:01:01.2]} 31... g5
{[%clk 0:00:50.2]} 32. hxg5 {[%clk 0:00:59]} 32... hxg5 {[%clk 0:00:51.1]} 33.
Be5 {[%clk 0:00:47.6]} 33... Bxe5 {[%clk 0:00:45.3]} 34. Nxe5 {[%clk 0:00:48.5]}
34... a5 {[%clk 0:00:44.3]} 35. Nf7 {[%clk 0:00:45.1]} 35... a4 {[%clk
0:00:35.4]} 36. Nxg5 {[%clk 0:00:44.1]} 36... a3 {[%clk 0:00:21.2]} 37. Ne4
{[%clk 0:00:29.1]} 37... Nc1 {[%clk 0:00:18.4]} 38. g5 {[%clk 0:00:23.4]} 38...
a2 {[%clk 0:00:16.6]} 39. Nf6+ {[%clk 0:00:23]} 39... Kf8 {[%clk 0:00:16.5]} 40.
g6 {[%clk 0:00:23.3]} 40... Ne2+ {[%clk 0:00:12.3]} 41. Kh2 {[%clk 0:00:23.3]}
1-0

[Event "Late-Titled-Tuesday-Blitz-January-23-2024"]
[Site "Chess.com"]
[Date "2024.01.23"]
[Round "1"]
[White "GianmarcoVaR"]
[Black "EsmeraldasAnderson03"]
[Result "1-0"]
[WhiteElo "2753"]
[BlackElo "2428"]
[TimeControl "180+1"]
[EndTime "14:07:17 PST"]
[Termination "GianmarcoVaR won by resignation"]

1. d4 {[%clk 0:02:55.8]} 1... d5 {[%clk 0:02:59.1]} 2. Nf3 {[%clk 0:02:52]} 2...
e6 {[%clk 0:02:57.4]} 3. Bf4 {[%clk 0:02:41.2]} 3... Bd6 {[%clk 0:02:57]} 4. e3
{[%clk 0:02:40.6]} 4... Nf6 {[%clk 0:02:56.6]} 5. Nbd2 {[%clk 0:02:40.3]} 5...
O-O {[%clk 0:02:57.3]} 6. c3 {[%clk 0:02:36.3]} 6... c5 {[%clk 0:02:57.5]} 7.
Ne5 {[%clk 0:02:34.7]} 7... Qc7 {[%clk 0:02:57.2]} 8. Bd3 {[%clk 0:02:33.4]}
8... Nbd7 {[%clk 0:02:56.8]} 9. Ndf3 {[%clk 0:02:30.4]} 9... Ne4 {[%clk
0:02:54.5]} 10. Nxd7 {[%clk 0:02:28.9]} 10... Bxd7 {[%clk 0:02:53.2]} 11. Bxe4
{[%clk 0:02:24.9]} 11... Bxf4 {[%clk 0:02:42.4]} 12. Bxh7+ {[%clk 0:02:20.4]}
12... Kxh7 {[%clk 0:02:43.3]} 13. exf4 {[%clk 0:02:19.5]} 13... Qxf4 {[%clk
0:02:43.9]} 14. O-O {[%clk 0:02:18]} 14... cxd4 {[%clk 0:02:42.4]} 15. cxd4
{[%clk 0:02:12.5]} 15... Bb5 {[%clk 0:02:41.2]} 16. Re1 {[%clk 0:02:09.2]} 16...
Rac8 {[%clk 0:02:37.4]} 17. Qb3 {[%clk 0:02:06.4]} 17... Ba6 {[%clk 0:02:33.1]}
18. Rad1 {[%clk 0:02:01.3]} 18... Rc7 {[%clk 0:02:22]} 19. g3 {[%clk 0:01:24.8]}
19... Qf5 {[%clk 0:02:05.4]} 20. Rc1 {[%clk 0:01:21.4]} 20... Rfc8 {[%clk
0:02:04.4]} 21. Rxc7 {[%clk 0:01:14]} 21... Rxc7 {[%clk 0:02:05.3]} 22. Kg2
{[%clk 0:01:08.6]} 22... Bd3 {[%clk 0:01:38.5]} 23. Re5 {[%clk 0:01:07.2]} 23...
Bc2 {[%clk 0:01:05.3]} 24. Rxf5 {[%clk 0:01:05.4]} 24... Bxb3 {[%clk 0:01:05.3]}
25. Rh5+ {[%clk 0:01:06.2]} 25... Kg6 {[%clk 0:01:03.4]} 26. Rg5+ {[%clk
0:01:06.9]} 26... Kf6 {[%clk 0:01:04.1]} 27. axb3 {[%clk 0:01:07.5]} 27... Rc2
{[%clk 0:01:04.6]} 28. Re5 {[%clk 0:01:02.7]} 28... Rxb2 {[%clk 0:01:01.7]} 29.
Re3 {[%clk 0:01:03.3]} 29... b5 {[%clk 0:01:01.8]} 30. Ne5 {[%clk 0:01:02.4]}
30... Ke7 {[%clk 0:00:59.5]} 31. Nc6+ {[%clk 0:01:02.7]} 31... Kd6 {[%clk
0:00:56.8]} 32. Rc3 {[%clk 0:00:58.6]} 32... b4 {[%clk 0:00:55.3]} 33. Nxb4
{[%clk 0:00:58.4]} 33... Rd2 {[%clk 0:00:50.2]} 34. Nd3 {[%clk 0:00:54]} 34...
f6 {[%clk 0:00:48.3]} 35. Kf3 {[%clk 0:00:53.7]} 35... e5 {[%clk 0:00:48.6]} 36.
Ke3 {[%clk 0:00:54.4]} 36... Rb2 {[%clk 0:00:47.8]} 37. h4 {[%clk 0:00:50.4]}
37... a5 {[%clk 0:00:47]} 38. f3 {[%clk 0:00:38.6]} 38... Rb1 {[%clk 0:00:37.6]}
39. Rc5 {[%clk 0:00:37.4]} 39... Ra1 {[%clk 0:00:28.8]} 40. Rb5 {[%clk
0:00:36.1]} 40... Ra3 {[%clk 0:00:29.1]} 41. Rb6+ {[%clk 0:00:36.2]} 41... Kc7
{[%clk 0:00:28.2]} 42. Ra6 {[%clk 0:00:34.4]} 42... Rxb3 {[%clk 0:00:21.8]} 43.
Rxa5 {[%clk 0:00:33.8]} 43... Kd6 {[%clk 0:00:22.6]} 44. Ra6+ {[%clk 0:00:33.5]}
44... Ke7 {[%clk 0:00:22.6]} 45. Ra7+ {[%clk 0:00:33.8]} 45... Ke6 {[%clk
0:00:22.8]} 46. Rxg7 {[%clk 0:00:32.2]} 1-0